[Event "Titled Tuesday Blitz April 11 Early 2023"]
[White "Schuh, Karsten"]
[Black "Hoffmann, Asa"]
[WhiteFideId "4637950"]
[BlackFideId "2001470"]
[WhiteElo "2138"]
[BlackElo "2117"]
[Result "1-0"]
[Round "08"]
[TimeControl "180+2"]
[Date "2023.04.11"]
[WhiteClock "0:00:20"]
[BlackClock "0:00:18"]

1. Nf3 {[%clk 0:03:00]}  d6 {[%clk 0:02:53]} 2. c4 {[%clk 0:02:59]}  e5 {[%clk 0:02:49]} 3. Nc3 {[%clk 0:02:59]}  Bg4 {[%clk 0:02:44]} 4. Qb3 {[%clk 0:02:48]}  b6 {[%clk 0:02:39]} 5. d3 {[%clk 0:02:42]}  Nd7 {[%clk 0:02:39]} 6. g3 {[%clk 0:02:27]}  Bxf3 {[%clk 0:02:37]} 7. exf3 {[%clk 0:02:26]}  Nc5 {[%clk 0:02:37]} 8. Qd1 {[%clk 0:02:25]}  a5 {[%clk 0:02:36]} 9. Bg2 {[%clk 0:02:24]}  Nf6 {[%clk 0:02:33]} 10. O-O {[%clk 0:02:22]}  Be7 {[%clk 0:02:32]} 11. d4 {[%clk 0:02:21]}  exd4 {[%clk 0:02:30]} 12. Qxd4 {[%clk 0:02:20]}  O-O {[%clk 0:02:29]} 13. f4 {[%clk 0:02:17]}  Rb8 {[%clk 0:02:26]} 14. h3 {[%clk 0:02:15]}  Re8 {[%clk 0:02:26]} 15. Be3 {[%clk 0:02:13]}  Nfd7 {[%clk 0:02:24]} 16. Rad1 {[%clk 0:02:09]}  Bf6 {[%clk 0:02:24]} 17. Qd2 {[%clk 0:02:08]}  a4 {[%clk 0:02:14]} 18. Nd5 {[%clk 0:02:07]}  Ne4 {[%clk 0:02:07]} 19. Qc2 {[%clk 0:01:59]}  Ndc5 {[%clk 0:02:06]} 20. Rfe1 {[%clk 0:01:57]}  c6 {[%clk 0:01:44]} 21. Nxf6+ {[%clk 0:01:52]}  Qxf6 {[%clk 0:01:43]} 22. Bxc5 {[%clk 0:01:46]}  Nxc5 {[%clk 0:01:37]} 23. Bxc6 {[%clk 0:01:43]}  Rxe1+ {[%clk 0:01:29]} 24. Rxe1 {[%clk 0:01:42]}  g6 {[%clk 0:01:28]} 25. Bd5 {[%clk 0:01:39]}  b5 {[%clk 0:01:24]} 26. b4 {[%clk 0:01:21]}  axb3 {[%clk 0:01:23]} 27. axb3 {[%clk 0:01:21]}  b4 {[%clk 0:01:22]} 28. Re3 {[%clk 0:01:18]}  Kg7 {[%clk 0:01:13]} 29. Kg2 {[%clk 0:01:17]}  h5 {[%clk 0:01:00]} 30. h4 {[%clk 0:01:15]}  Qf5 {[%clk 0:00:55]} 31. Qd2 {[%clk 0:00:48]}  Qf6 {[%clk 0:00:51]} 32. Qe2 {[%clk 0:00:46]}  Rb6 {[%clk 0:00:48]} 33. f5 {[%clk 0:00:37]}  Ra6 {[%clk 0:00:38]} 34. fxg6 {[%clk 0:00:37]}  fxg6 {[%clk 0:00:36]} 35. Re7+ {[%clk 0:00:35]}  Kf8 {[%clk 0:00:32]} 36. Rf7+ {[%clk 0:00:30]}  Qxf7 {[%clk 0:00:32]} 37. Bxf7 {[%clk 0:00:30]}  Kxf7 {[%clk 0:00:32]} 38. Qd2 {[%clk 0:00:24]}  Rb6 {[%clk 0:00:30]} 39. Qe3 {[%clk 0:00:21]}  Rb7 {[%clk 0:00:26]} 40. Qf4+ {[%clk 0:00:20]}  Ke7 {[%clk 0:00:25]} 41. Qg5+ {[%clk 0:00:20]}  Kd7 {[%clk 0:00:25]} 42. Qxg6 {[%clk 0:00:20]}  Nxb3 {[%clk 0:00:25]} 43. Qf7+ {[%clk 0:00:20]}  Kc8 {[%clk 0:00:22]} 44. Qe8+ {[%clk 0:00:20]}  Kc7 {[%clk 0:00:22]} 45. Qe7+ {[%clk 0:00:20]}  Kc6 {[%clk 0:00:21]} 46. Qe8+ {[%clk 0:00:19]}  Kc7 {[%clk 0:00:21]} 47. Qf7+ {[%clk 0:00:19]}  Kc6 {[%clk 0:00:21]} 48. Qf3+ {[%clk 0:00:18]}  Kc7 {[%clk 0:00:19]} 49. Qxb3 {[%clk 0:00:19]}  Kc6 {[%clk 0:00:18]} 50. f3 {[%clk 0:00:19]}  Kc5 {[%clk 0:00:18]} 51. g4 {[%clk 0:00:20]} 1-0


[Site "https://www.chess.com"]

[Event "Titled Tuesday Blitz April 11 Early 2023"]
[White "Matveeva, Olga"]
[Black "FuenfgegenWilly"]
[WhiteFideId "24107018"]
[WhiteElo "2056"]
[BlackElo "2234"]
[Result "0-1"]
[Round "08"]
[TimeControl "180+2"]
[Date "2023.04.11"]
[WhiteClock "0:00:01"]
[BlackClock "0:00:32"]

1. d4 {[%clk 0:03:00]}  d5 {[%clk 0:02:59]} 2. c4 {[%clk 0:03:00]}  e5 {[%clk 0:02:59]} 3. dxe5 {[%clk 0:03:00]}  d4 {[%clk 0:03:00]} 4. Nf3 {[%clk 0:02:59]}  Nc6 {[%clk 0:03:00]} 5. a3 {[%clk 0:02:59]}  Nge7 {[%clk 0:02:59]} 6. b4 {[%clk 0:02:54]}  Ng6 {[%clk 0:02:59]} 7. Bb2 {[%clk 0:02:53]}  Ngxe5 {[%clk 0:02:58]} 8. Nxe5 {[%clk 0:02:48]}  Nxe5 {[%clk 0:02:59]} 9. Qxd4 {[%clk 0:02:47]}  Qxd4 {[%clk 0:02:58]} 10. Bxd4 {[%clk 0:02:48]}  Nxc4 {[%clk 0:02:59]} 11. e3 {[%clk 0:02:47]}  Nd6 {[%clk 0:02:59]} 12. Nd2 {[%clk 0:02:43]}  c6 {[%clk 0:02:49]} 13. Nc4 {[%clk 0:02:34]}  Nxc4 {[%clk 0:02:43]} 14. Bxc4 {[%clk 0:02:35]}  a5 {[%clk 0:02:42]} 15. b5 {[%clk 0:02:33]}  Bd7 {[%clk 0:02:17]} 16. bxc6 {[%clk 0:02:08]}  Bxc6 {[%clk 0:02:17]} 17. f3 {[%clk 0:02:03]}  b5 {[%clk 0:02:08]} 18. Bd3 {[%clk 0:01:52]}  b4 {[%clk 0:02:07]} 19. axb4 {[%clk 0:01:46]}  Bxb4+ {[%clk 0:02:07]} 20. Ke2 {[%clk 0:01:46]}  O-O {[%clk 0:02:05]} 21. Rhc1 {[%clk 0:01:44]}  Rfc8 {[%clk 0:02:04]} 22. Rc4 {[%clk 0:00:49]}  Bd5 {[%clk 0:01:56]} 23. Rxc8+ {[%clk 0:00:45]}  Rxc8 {[%clk 0:01:57]} 24. Bb6 {[%clk 0:00:41]}  g6 {[%clk 0:01:35]} 25. e4 {[%clk 0:00:38]}  Be6 {[%clk 0:01:34]} 26. Ke3 {[%clk 0:00:35]}  Bc3 {[%clk 0:01:31]} 27. Ra3 {[%clk 0:00:23]}  Bb4 {[%clk 0:01:21]} 28. Ra1 {[%clk 0:00:19]}  Rb8 {[%clk 0:01:06]} 29. Bc7 {[%clk 0:00:17]}  Rb7 {[%clk 0:01:04]} 30. Bd8 {[%clk 0:00:17]}  Ra7 {[%clk 0:00:57]} 31. Bb5 {[%clk 0:00:14]}  Bc3 {[%clk 0:00:51]} 32. Ra3 {[%clk 0:00:13]}  Bb4 {[%clk 0:00:47]} 33. Ra1 {[%clk 0:00:13]}  Ra8 {[%clk 0:00:46]} 34. Bf6 {[%clk 0:00:11]}  Bb3 {[%clk 0:00:43]} 35. Ba4 {[%clk 0:00:07]}  Bc4 {[%clk 0:00:32]} 36. Rc1 {[%clk 0:00:01]}  Be6 {[%clk 0:00:32]} 0-1


[Site "https://www.chess.com"]

[Event "Titled Tuesday Blitz April 11 Early 2023"]
[White "Einarsson, Halldor Gretar"]
[Black "Novikova, Galina"]
[WhiteFideId "2300150"]
[BlackFideId "4157095"]
[WhiteElo "2142"]
[BlackElo "1953"]
[Result "0-1"]
[Round "08"]
[TimeControl "180+2"]
[Date "2023.04.11"]
[WhiteClock "0:00:01"]
[BlackClock "0:00:33"]

1. d4 {[%clk 0:03:00]}  e6 {[%clk 0:02:59]} 2. c4 {[%clk 0:02:58]}  d5 {[%clk 0:03:00]} 3. Nf3 {[%clk 0:02:57]}  c6 {[%clk 0:03:00]} 4. Nc3 {[%clk 0:02:55]}  dxc4 {[%clk 0:03:00]} 5. g3 {[%clk 0:02:49]}  b5 {[%clk 0:03:00]} 6. Bg2 {[%clk 0:02:46]}  Bb7 {[%clk 0:03:00]} 7. O-O {[%clk 0:02:40]}  a6 {[%clk 0:03:01]} 8. a4 {[%clk 0:02:36]}  Nf6 {[%clk 0:02:57]} 9. Ne5 {[%clk 0:02:34]}  Qb6 {[%clk 0:02:56]} 10. b3 {[%clk 0:02:21]}  cxb3 {[%clk 0:02:46]} 11. Qxb3 {[%clk 0:02:13]}  b4 {[%clk 0:02:43]} 12. Rd1 {[%clk 0:01:50]}  Be7 {[%clk 0:02:38]} 13. Nc4 {[%clk 0:01:44]}  Qd8 {[%clk 0:02:32]} 14. a5 {[%clk 0:01:32]}  Nbd7 {[%clk 0:02:25]} 15. Bf4 {[%clk 0:01:18]}  O-O {[%clk 0:02:23]} 16. Nd6 {[%clk 0:01:13]}  bxc3 {[%clk 0:01:39]} 17. Qxb7 {[%clk 0:00:59]}  Nd5 {[%clk 0:01:34]} 18. Qxc6 {[%clk 0:00:47]}  Nxf4 {[%clk 0:01:30]} 19. gxf4 {[%clk 0:00:44]}  Nf6 {[%clk 0:01:29]} 20. Qxa8 {[%clk 0:00:21]}  Qxd6 {[%clk 0:01:28]} 21. Qf3 {[%clk 0:00:19]}  Nd5 {[%clk 0:01:27]} 22. e3 {[%clk 0:00:17]}  g6 {[%clk 0:01:24]} 23. Rdc1 {[%clk 0:00:16]}  Rc8 {[%clk 0:01:24]} 24. Rc2 {[%clk 0:00:11]}  Nb4 {[%clk 0:01:23]} 25. Qb7 {[%clk 0:00:10]}  Rc7 {[%clk 0:01:21]} 26. Qb8+ {[%clk 0:00:09]}  Kg7 {[%clk 0:01:21]} 27. Rac1 {[%clk 0:00:07]}  Nxc2 {[%clk 0:01:21]} 28. Rxc2 {[%clk 0:00:07]}  Qd7 {[%clk 0:01:18]} 29. Qb6 {[%clk 0:00:06]}  Qc8 {[%clk 0:01:02]} 30. Be4 {[%clk 0:00:05]}  Bd8 {[%clk 0:00:58]} 31. Bd3 {[%clk 0:00:04]}  Rc6 {[%clk 0:00:52]} 32. Qb4 {[%clk 0:00:03]}  Qc7 {[%clk 0:00:43]} 33. Be4 {[%clk 0:00:02]}  Rc4 {[%clk 0:00:42]} 34. Qb3 {[%clk 0:00:02]}  Be7 {[%clk 0:00:38]} 35. Bd3 {[%clk 0:00:02]}  Rc6 {[%clk 0:00:36]} 36. Qa4 {[%clk 0:00:01]}  f5 {[%clk 0:00:33]} 0-1


[Site "https://www.chess.com"]

[Event "Titled Tuesday Blitz April 11 Early 2023"]
[White "Jiganchine, Roman"]
[Black "Palencia Morales, Wilson Guillermo"]
[WhiteFideId "2603667"]
[BlackFideId "4401859"]
[WhiteElo "2268"]
[BlackElo "2139"]
[Result "0-1"]
[Round "08"]
[TimeControl "180+2"]
[Date "2023.04.11"]
[WhiteClock "0:00:01"]
[BlackClock "0:00:57"]

1. e4 {[%clk 0:02:59]}  c5 {[%clk 0:02:59]} 2. Nf3 {[%clk 0:02:58]}  Nc6 {[%clk 0:02:58]} 3. g3 {[%clk 0:02:58]}  d6 {[%clk 0:02:58]} 4. Bg2 {[%clk 0:02:55]}  Qd7 {[%clk 0:02:55]} 5. O-O {[%clk 0:02:54]}  b6 {[%clk 0:02:55]} 6. c3 {[%clk 0:02:50]}  Bb7 {[%clk 0:02:55]} 7. d4 {[%clk 0:02:50]}  g6 {[%clk 0:02:55]} 8. Re1 {[%clk 0:02:45]}  Bg7 {[%clk 0:02:54]} 9. Na3 {[%clk 0:02:35]}  Nh6 {[%clk 0:02:49]} 10. Nc2 {[%clk 0:02:25]}  O-O {[%clk 0:02:49]} 11. Bg5 {[%clk 0:02:20]}  f6 {[%clk 0:02:45]} 12. Bf4 {[%clk 0:02:06]}  Nf7 {[%clk 0:02:43]} 13. a4 {[%clk 0:01:54]}  Rad8 {[%clk 0:02:42]} 14. Qd2 {[%clk 0:01:36]}  e5 {[%clk 0:02:41]} 15. Be3 {[%clk 0:01:25]}  f5 {[%clk 0:02:36]} 16. d5 {[%clk 0:01:16]}  Ne7 {[%clk 0:02:35]} 17. c4 {[%clk 0:01:15]}  fxe4 {[%clk 0:02:31]} 18. Ng5 {[%clk 0:01:11]}  Nxg5 {[%clk 0:02:31]} 19. Bxg5 {[%clk 0:01:11]}  Qf5 {[%clk 0:02:28]} 20. Bxe7 {[%clk 0:01:07]}  Rde8 {[%clk 0:02:20]} 21. Bxf8 {[%clk 0:01:07]}  Rxf8 {[%clk 0:02:21]} 22. Bxe4 {[%clk 0:01:07]}  Qh3 {[%clk 0:02:12]} 23. Bg2 {[%clk 0:01:06]}  Qh5 {[%clk 0:02:11]} 24. Qe2 {[%clk 0:01:02]}  Qg5 {[%clk 0:02:06]} 25. h4 {[%clk 0:01:01]}  Qe7 {[%clk 0:02:00]} 26. Bh3 {[%clk 0:00:59]}  g5 {[%clk 0:01:56]} 27. Be6+ {[%clk 0:00:53]}  Kh8 {[%clk 0:01:55]} 28. h5 {[%clk 0:00:38]}  Qf6 {[%clk 0:01:46]} 29. Ne3 {[%clk 0:00:34]}  Qh6 {[%clk 0:01:38]} 30. Kg2 {[%clk 0:00:26]}  Qxe6 {[%clk 0:01:32]} 31. Qg4 {[%clk 0:00:19]}  Qf6 {[%clk 0:01:29]} 32. Re2 {[%clk 0:00:19]}  Bc8 {[%clk 0:01:24]} 33. Qe4 {[%clk 0:00:19]}  Bd7 {[%clk 0:01:13]} 34. a5 {[%clk 0:00:19]}  b5 {[%clk 0:01:12]} 35. a6 {[%clk 0:00:16]}  b4 {[%clk 0:01:11]} 36. Rh1 {[%clk 0:00:14]}  Bh6 {[%clk 0:01:10]} 37. Ng4 {[%clk 0:00:13]}  Qg7 {[%clk 0:01:07]} 38. Nxh6 {[%clk 0:00:13]}  Qxh6 {[%clk 0:01:08]} 39. g4 {[%clk 0:00:12]}  Rf4 {[%clk 0:01:07]} 40. Qc2 {[%clk 0:00:06]}  Bxg4 {[%clk 0:01:03]} 41. Re3 {[%clk 0:00:05]}  Qf6 {[%clk 0:01:03]} 42. Rf1 {[%clk 0:00:05]}  Bf3+ {[%clk 0:01:02]} 43. Kg1 {[%clk 0:00:03]}  Rg4+ {[%clk 0:00:59]} 44. Kh2 {[%clk 0:00:02]}  Qf4+ {[%clk 0:00:58]} 45. Kh3 {[%clk 0:00:01]}  Rh4# {[%clk 0:00:57]} 0-1


[Site "https://www.chess.com"]

[Event "Titled Tuesday Blitz April 11 Early 2023"]
[White "Cramling Bellon, Anna"]
[Black "Carrasco Miranda, Andres"]
[WhiteFideId "32009232"]
[BlackFideId "3405990"]
[WhiteElo "1972"]
[BlackElo "2183"]
[Result "1/2-1/2"]
[Round "08"]
[TimeControl "180+2"]
[Date "2023.04.11"]
[WhiteClock "0:00:05"]
[BlackClock "0:00:10"]

1. d4 {[%clk 0:03:00]}  Nf6 {[%clk 0:02:57]} 2. c4 {[%clk 0:03:00]}  g6 {[%clk 0:02:52]} 3. Nc3 {[%clk 0:03:00]}  d5 {[%clk 0:02:40]} 4. cxd5 {[%clk 0:03:00]}  Nxd5 {[%clk 0:02:39]} 5. e4 {[%clk 0:03:01]}  Nxc3 {[%clk 0:02:39]} 6. bxc3 {[%clk 0:03:01]}  Bg7 {[%clk 0:02:40]} 7. Qa4+ {[%clk 0:02:59]}  c6 {[%clk 0:02:36]} 8. Nf3 {[%clk 0:02:59]}  O-O {[%clk 0:02:36]} 9. Bg5 {[%clk 0:02:56]}  b5 {[%clk 0:02:35]} 10. Qa3 {[%clk 0:02:51]}  Re8 {[%clk 0:02:34]} 11. Be2 {[%clk 0:02:45]}  Nd7 {[%clk 0:02:31]} 12. Rd1 {[%clk 0:02:45]}  a5 {[%clk 0:02:26]} 13. O-O {[%clk 0:02:45]}  b4 {[%clk 0:02:25]} 14. cxb4 {[%clk 0:02:43]}  axb4 {[%clk 0:02:26]} 15. Qxb4 {[%clk 0:02:41]}  Rxa2 {[%clk 0:02:21]} 16. Bc4 {[%clk 0:02:41]}  Ra8 {[%clk 0:02:13]} 17. Ne5 {[%clk 0:02:04]}  Nxe5 {[%clk 0:02:05]} 18. dxe5 {[%clk 0:02:05]}  Qc7 {[%clk 0:01:42]} 19. Qb3 {[%clk 0:01:50]}  e6 {[%clk 0:01:36]} 20. f4 {[%clk 0:01:39]}  Ba6 {[%clk 0:01:32]} 21. Bf6 {[%clk 0:01:23]}  Reb8 {[%clk 0:01:19]} 22. Qd3 {[%clk 0:01:12]}  Bxc4 {[%clk 0:01:15]} 23. Qxc4 {[%clk 0:01:10]}  Bf8 {[%clk 0:01:15]} 24. f5 {[%clk 0:00:58]}  Qb6+ {[%clk 0:00:58]} 25. Kh1 {[%clk 0:00:56]}  Qb5 {[%clk 0:00:59]} 26. Qc3 {[%clk 0:00:46]}  Ra2 {[%clk 0:00:51]} 27. fxg6 {[%clk 0:00:39]}  fxg6 {[%clk 0:00:46]} 28. Qh3 {[%clk 0:00:32]}  Re8 {[%clk 0:00:26]} 29. Rb1 {[%clk 0:00:15]}  Rb2 {[%clk 0:00:26]} 30. Rbd1 {[%clk 0:00:09]}  Rd2 {[%clk 0:00:24]} 31. Qf3 {[%clk 0:00:05]}  Rxd1 {[%clk 0:00:21]} 32. Rxd1 {[%clk 0:00:06]}  Qc4 {[%clk 0:00:09]} 33. h4 {[%clk 0:00:05]}  Ra8 {[%clk 0:00:08]} 34. h5 {[%clk 0:00:04]}  Ra7 {[%clk 0:00:06]} 35. Bg5 {[%clk 0:00:02]}  Rf7 {[%clk 0:00:06]} 36. Qg3 {[%clk 0:00:01]}  Rf1+ {[%clk 0:00:06]} 37. Rxf1 {[%clk 0:00:01]}  Qxf1+ {[%clk 0:00:07]} 38. Kh2 {[%clk 0:00:02]}  Qf7 {[%clk 0:00:07]} 39. Bf6 {[%clk 0:00:02]}  Be7 {[%clk 0:00:07]} 40. hxg6 {[%clk 0:00:02]}  hxg6 {[%clk 0:00:07]} 41. Bxe7 {[%clk 0:00:02]}  Qxe7 {[%clk 0:00:08]} 42. Qxg6+ {[%clk 0:00:02]}  Kf8 {[%clk 0:00:06]} 43. Qf6+ {[%clk 0:00:01]}  Ke8 {[%clk 0:00:07]} 44. Qh8+ {[%clk 0:00:01]}  Kd7 {[%clk 0:00:07]} 45. Qb8 {[%clk 0:00:01]}  Qh4+ {[%clk 0:00:07]} 46. Kg1 {[%clk 0:00:01]}  Qe1+ {[%clk 0:00:08]} 47. Kh2 {[%clk 0:00:02]}  Qxe4 {[%clk 0:00:08]} 48. Qd6+ {[%clk 0:00:02]}  Kc8 {[%clk 0:00:08]} 49. Qxe6+ {[%clk 0:00:03]}  Kb7 {[%clk 0:00:08]} 50. Qd7+ {[%clk 0:00:03]}  Kb6 {[%clk 0:00:09]} 51. Qd8+ {[%clk 0:00:03]}  Kb5 {[%clk 0:00:09]} 52. Qb8+ {[%clk 0:00:03]}  Kc4 {[%clk 0:00:09]} 53. Qd6 {[%clk 0:00:03]}  c5 {[%clk 0:00:09]} 54. g3 {[%clk 0:00:02]}  Qe2+ {[%clk 0:00:09]} 55. Kh3 {[%clk 0:00:02]}  Qh5+ {[%clk 0:00:08]} 56. Kg2 {[%clk 0:00:02]}  Qe2+ {[%clk 0:00:09]} 57. Kg1 {[%clk 0:00:03]}  Qe1+ {[%clk 0:00:09]} 58. Kg2 {[%clk 0:00:04]}  Qe2+ {[%clk 0:00:09]} 59. Kh3 {[%clk 0:00:04]}  Qh5+ {[%clk 0:00:09]} 60. Kg2 {[%clk 0:00:05]}  Qe2+ {[%clk 0:00:10]} 1/2-1/2


[Site "https://www.chess.com"]

[Event "Titled Tuesday Blitz April 11 Early 2023"]
[White "Golubev, Mikhail"]
[Black "rionelG"]
[WhiteFideId "14100983"]
[WhiteElo "2374"]
[BlackElo "2163"]
[Result "0-1"]
[Round "08"]
[TimeControl "180+2"]
[Date "2023.04.11"]
[WhiteClock "0:00:01"]
[BlackClock "0:00:12"]

1. g3 {[%clk 0:03:00]}  Nf6 {[%clk 0:02:59]} 2. Bg2 {[%clk 0:03:01]}  g6 {[%clk 0:03:00]} 3. d4 {[%clk 0:02:57]}  Bg7 {[%clk 0:03:00]} 4. e4 {[%clk 0:02:56]}  O-O {[%clk 0:03:00]} 5. Nc3 {[%clk 0:02:56]}  c5 {[%clk 0:03:00]} 6. d5 {[%clk 0:02:52]}  d6 {[%clk 0:02:58]} 7. Nge2 {[%clk 0:02:51]}  Na6 {[%clk 0:02:58]} 8. O-O {[%clk 0:02:49]}  Nc7 {[%clk 0:02:58]} 9. a4 {[%clk 0:02:47]}  b6 {[%clk 0:02:53]} 10. Re1 {[%clk 0:02:40]}  a6 {[%clk 0:02:53]} 11. h3 {[%clk 0:02:30]}  Bd7 {[%clk 0:02:53]} 12. g4 {[%clk 0:02:15]}  b5 {[%clk 0:02:50]} 13. Ng3 {[%clk 0:02:12]}  bxa4 {[%clk 0:02:13]} 14. Nxa4 {[%clk 0:02:07]}  Bxa4 {[%clk 0:02:13]} 15. Rxa4 {[%clk 0:02:07]}  Nd7 {[%clk 0:02:14]} 16. c3 {[%clk 0:02:03]}  a5 {[%clk 0:01:59]} 17. Ra1 {[%clk 0:01:54]}  Qb8 {[%clk 0:01:55]} 18. h4 {[%clk 0:01:49]}  c4 {[%clk 0:01:42]} 19. Bf1 {[%clk 0:01:31]}  Qb3 {[%clk 0:01:29]} 20. Ra3 {[%clk 0:00:54]}  Qxd1 {[%clk 0:01:13]} 21. Rxd1 {[%clk 0:00:55]}  Nb5 {[%clk 0:01:12]} 22. Ra1 {[%clk 0:00:44]}  Rfc8 {[%clk 0:01:11]} 23. Ra4 {[%clk 0:00:26]}  Nb6 {[%clk 0:01:08]} 24. Ra1 {[%clk 0:00:23]}  a4 {[%clk 0:01:08]} 25. Be3 {[%clk 0:00:23]}  Nd7 {[%clk 0:01:06]} 26. f4 {[%clk 0:00:12]}  a3 {[%clk 0:01:05]} 27. Rdb1 {[%clk 0:00:10]}  axb2 {[%clk 0:01:00]} 28. Rxa8 {[%clk 0:00:09]}  Rxa8 {[%clk 0:01:01]} 29. Rxb2 {[%clk 0:00:08]}  Nxc3 {[%clk 0:01:01]} 30. Rb7 {[%clk 0:00:07]}  Nf6 {[%clk 0:00:57]} 31. Bd4 {[%clk 0:00:06]}  Ncxe4 {[%clk 0:00:55]} 32. g5 {[%clk 0:00:04]}  Nxg3 {[%clk 0:00:49]} 33. gxf6 {[%clk 0:00:04]}  Bxf6 {[%clk 0:00:41]} 34. Bxf6 {[%clk 0:00:05]}  exf6 {[%clk 0:00:42]} 35. Bxc4 {[%clk 0:00:05]}  Ra4 {[%clk 0:00:42]} 36. Rc7 {[%clk 0:00:05]}  Nf5 {[%clk 0:00:40]} 37. Bb5 {[%clk 0:00:05]}  Rxf4 {[%clk 0:00:39]} 38. Be8 {[%clk 0:00:05]}  Nh6 {[%clk 0:00:34]} 39. Rc6 {[%clk 0:00:05]}  Re4 {[%clk 0:00:28]} 40. Rc8 {[%clk 0:00:05]}  Kg7 {[%clk 0:00:27]} 41. Rd8 {[%clk 0:00:05]}  Nf5 {[%clk 0:00:24]} 42. Bd7 {[%clk 0:00:06]}  Nxh4 {[%clk 0:00:24]} 43. Bc6 {[%clk 0:00:06]}  Nf5 {[%clk 0:00:23]} 44. Bd7 {[%clk 0:00:05]}  Ne7 {[%clk 0:00:19]} 45. Bc6 {[%clk 0:00:05]}  Rc4 {[%clk 0:00:15]} 46. Rxd6 {[%clk 0:00:05]}  Nxc6 {[%clk 0:00:15]} 47. dxc6 {[%clk 0:00:05]}  Rc2 {[%clk 0:00:15]} 48. Kf1 {[%clk 0:00:04]}  h5 {[%clk 0:00:15]} 49. Ke1 {[%clk 0:00:05]}  h4 {[%clk 0:00:15]} 50. Kd1 {[%clk 0:00:05]}  Rc5 {[%clk 0:00:15]} 51. Ke2 {[%clk 0:00:05]}  g5 {[%clk 0:00:15]} 52. Kf3 {[%clk 0:00:05]}  Kg6 {[%clk 0:00:15]} 53. Kg2 {[%clk 0:00:04]}  Rc3 {[%clk 0:00:14]} 54. Kf2 {[%clk 0:00:04]}  Kf5 {[%clk 0:00:13]} 55. Rd5+ {[%clk 0:00:03]}  Kg4 {[%clk 0:00:13]} 56. Rd4+ {[%clk 0:00:03]}  Kh5 {[%clk 0:00:13]} 57. Rd6 {[%clk 0:00:03]}  f5 {[%clk 0:00:13]} 58. Rf6 {[%clk 0:00:03]}  f4 {[%clk 0:00:13]} 59. Kg2 {[%clk 0:00:02]}  Kg4 {[%clk 0:00:13]} 60. Kf2 {[%clk 0:00:03]}  Rc2+ {[%clk 0:00:14]} 61. Kg1 {[%clk 0:00:02]}  Kg3 {[%clk 0:00:14]} 62. Kf1 {[%clk 0:00:01]}  g4 {[%clk 0:00:14]} 63. Ke1 {[%clk 0:00:01]}  h3 {[%clk 0:00:13]} 64. Kd1 {[%clk 0:00:01]}  Rxc6 {[%clk 0:00:12]} 0-1


[Site "https://www.chess.com"]

[Event "Titled Tuesday Blitz April 11 Early 2023"]
[White "dDobravcan"]
[Black "sebastianmarinp"]
[WhiteElo "2150"]
[BlackElo "2277"]
[Result "0-1"]
[Round "08"]
[TimeControl "180+2"]
[Date "2023.04.11"]
[WhiteClock "0:01:46"]
[BlackClock "0:02:03"]

1. e4 {[%clk 0:03:00]}  e5 {[%clk 0:02:59]} 2. Nf3 {[%clk 0:02:59]}  Nc6 {[%clk 0:02:59]} 3. Bb5 {[%clk 0:03:00]}  a6 {[%clk 0:02:59]} 4. Bxc6 {[%clk 0:03:00]}  dxc6 {[%clk 0:02:59]} 5. O-O {[%clk 0:03:00]}  Bg4 {[%clk 0:02:57]} 6. h3 {[%clk 0:03:00]}  h5 {[%clk 0:02:57]} 7. d3 {[%clk 0:02:59]}  Ne7 {[%clk 0:02:52]} 8. Nbd2 {[%clk 0:02:58]}  Ng6 {[%clk 0:02:50]} 9. Re1 {[%clk 0:02:55]}  Bc5 {[%clk 0:02:44]} 10. Nf1 {[%clk 0:02:37]}  Qf6 {[%clk 0:02:07]} 11. hxg4 {[%clk 0:01:50]}  hxg4 {[%clk 0:02:08]} 12. N3h2 {[%clk 0:01:49]}  Qxf2+ {[%clk 0:02:04]} 13. Kh1 {[%clk 0:01:46]}  Qg1# {[%clk 0:02:03]} 0-1


[Site "https://www.chess.com"]

[Event "Titled Tuesday Blitz April 11 Early 2023"]
[White "Clawitter, Craig"]
[Black "Munro, Allan"]
[WhiteFideId "2023105"]
[BlackFideId "7700245"]
[WhiteElo "2257"]
[BlackElo "2084"]
[Result "0-1"]
[Round "08"]
[TimeControl "180+2"]
[Date "2023.04.11"]
[WhiteClock "0:00:04"]
[BlackClock "0:01:12"]

1. e4 {[%clk 0:02:52]}  e5 {[%clk 0:02:59]} 2. Nc3 {[%clk 0:02:50]}  Nf6 {[%clk 0:02:58]} 3. g3 {[%clk 0:02:48]}  Bc5 {[%clk 0:02:55]} 4. Bg2 {[%clk 0:02:48]}  O-O {[%clk 0:02:52]} 5. Nge2 {[%clk 0:02:48]}  c6 {[%clk 0:02:50]} 6. O-O {[%clk 0:02:47]}  d5 {[%clk 0:02:48]} 7. exd5 {[%clk 0:02:47]}  cxd5 {[%clk 0:02:48]} 8. d4 {[%clk 0:02:47]}  exd4 {[%clk 0:02:40]} 9. Nxd4 {[%clk 0:02:48]}  Nc6 {[%clk 0:02:40]} 10. Nb3 {[%clk 0:02:45]}  d4 {[%clk 0:02:23]} 11. Nxc5 {[%clk 0:02:27]}  dxc3 {[%clk 0:02:23]} 12. Qxd8 {[%clk 0:02:22]}  Rxd8 {[%clk 0:02:23]} 13. bxc3 {[%clk 0:02:22]}  Nd5 {[%clk 0:01:49]} 14. Bg5 {[%clk 0:01:28]}  f6 {[%clk 0:01:47]} 15. Bd2 {[%clk 0:01:18]}  b6 {[%clk 0:01:46]} 16. Nb3 {[%clk 0:00:46]}  Bb7 {[%clk 0:01:44]} 17. Rad1 {[%clk 0:00:43]}  Rac8 {[%clk 0:01:43]} 18. c4 {[%clk 0:00:43]}  Ndb4 {[%clk 0:01:42]} 19. Bxb4 {[%clk 0:00:41]}  Nxb4 {[%clk 0:01:43]} 20. Bxb7 {[%clk 0:00:40]}  Rb8 {[%clk 0:01:43]} 21. Bd5+ {[%clk 0:00:35]}  Kf8 {[%clk 0:01:43]} 22. c3 {[%clk 0:00:22]}  Nxa2 {[%clk 0:01:42]} 23. Rd3 {[%clk 0:00:21]}  b5 {[%clk 0:01:37]} 24. Ra1 {[%clk 0:00:11]}  bxc4 {[%clk 0:01:35]} 25. Bxc4 {[%clk 0:00:12]}  Rxd3 {[%clk 0:01:34]} 26. Bxd3 {[%clk 0:00:12]}  Rxb3 {[%clk 0:01:34]} 27. Rxa2 {[%clk 0:00:12]}  Rxc3 {[%clk 0:01:35]} 28. Bxh7 {[%clk 0:00:10]}  Rc7 {[%clk 0:01:35]} 29. Bf5 {[%clk 0:00:10]}  Kf7 {[%clk 0:01:33]} 30. Rc2 {[%clk 0:00:09]}  Re7 {[%clk 0:01:31]} 31. Kg2 {[%clk 0:00:09]}  g6 {[%clk 0:01:31]} 32. Bd3 {[%clk 0:00:08]}  f5 {[%clk 0:01:30]} 33. Bc4+ {[%clk 0:00:09]}  Kg7 {[%clk 0:01:30]} 34. Re2 {[%clk 0:00:08]}  Rc7 {[%clk 0:01:31]} 35. Bb3 {[%clk 0:00:08]}  Rb7 {[%clk 0:01:31]} 36. Bd5 {[%clk 0:00:08]}  Rd7 {[%clk 0:01:30]} 37. Bf3 {[%clk 0:00:08]}  a5 {[%clk 0:01:30]} 38. Ra2 {[%clk 0:00:07]}  Ra7 {[%clk 0:01:30]} 39. h4 {[%clk 0:00:08]}  Kf6 {[%clk 0:01:30]} 40. Bc6 {[%clk 0:00:07]}  Ke5 {[%clk 0:01:30]} 41. Ba4 {[%clk 0:00:07]}  Kd4 {[%clk 0:01:29]} 42. Rc2 {[%clk 0:00:06]}  Rb7 {[%clk 0:01:24]} 43. Kf3 {[%clk 0:00:06]}  Rb4 {[%clk 0:01:24]} 44. Bc6 {[%clk 0:00:05]}  a4 {[%clk 0:01:21]} 45. Be8 {[%clk 0:00:05]}  Rb3+ {[%clk 0:01:13]} 46. Kf4 {[%clk 0:00:05]}  a3 {[%clk 0:01:12]} 47. Bxg6 {[%clk 0:00:04]}  Rb2 {[%clk 0:01:13]} 48. Bxf5 {[%clk 0:00:04]}  Rxc2 {[%clk 0:01:11]} 49. Bxc2 {[%clk 0:00:04]}  a2 {[%clk 0:01:12]} 0-1


[Site "https://www.chess.com"]